Workbook

Sheet 贷款计算器
B2: 高校贷款 | G2: ¥500,000 | L2: 4067300.00%
B3: 计算器
B5: 建议您月学生贷款还款总额不超过第一年年薪的 8%。
C7: 合并的当前月还款额为： | E7: =CollegeLoans[[#Totals],[当前月还款额]] -> ¥3,285.86 | I7: 合并的计划月还款额为： | L7: =CollegeLoans[[#Totals],[计划还款]] -> ¥3,285.86
C8: 月收入百分比： | E8: =CollegeLoans[[#Totals],[当前月还款额]]/EstimatedMonthlySalary -> 7.89% | I8: 月收入百分比： | L8: =CollegeLoans[[#Totals],[计划还款]]/EstimatedMonthlySalary -> 7.89%
C11: 常规贷款详细信息 | G11: 贷款偿还数据 | J11: 还款详细信息
C12: 贷款编号 | D12: 贷方 | E12: 贷款金额 | F12: 年利率 | G12: 开始日期 | H12: 期限（年） | I12: 结束日期 | J12: 当前月还款额 | K12: 总利息 | L12: 计划还款 | M12: 年度还款
C13: 10998M88 | D13: 贷方 1 | E13: ¥100,000.00 | F13: 5.00% | G13: 4063400.00% | H13: 10 | I13: =IF(AND(CollegeLoans[[#This Row],[开始日期]]>0,CollegeLoans[[#This Row],[期限（年）]]>0),EDATE(CollegeLoans[[#This Row],[开始日期]],CollegeLoans[[#This Row],[期限（年）]]*12),"") -> 4428700.00% | J13: =IF(AND(LoanStartLToday,COUNT(CollegeLoans[[#This Row],[贷款金额]:[期限（年）]])=4,CollegeLoans[[#This Row],[开始日期]]<TODAY()),PMT(CollegeLoans[[#This Row],[年利率]]/12,CollegeLoans[[#This Row],[期限（年）]]*12,-CollegeLoans[[#This Row],[贷款金额]],0,0),"") -> ¥1,060.66 | K13: =IFERROR((CollegeLoans[[#This Row],[计划还款]]*(CollegeLoans[[#This Row],[期限（年）]]*12))-CollegeLoans[[#This Row],[贷款金额]],"") -> ¥27,278.62 | L13: =IF(COUNTA(CollegeLoans[[#This Row],[贷款金额]:[期限（年）]])<>4,"",PMT(CollegeLoans[[#This Row],[年利率]]/12,CollegeLoans[[#This Row],[期限（年）]]*12,-CollegeLoans[[#This Row],[贷款金额]],0,0)) -> ¥1,060.66 | M13: =IFERROR(CollegeLoans[[#This Row],[计划还款]]*12,"") -> ¥12,727.86
C14: 20987N87 | D14: 贷方 2 | E14: ¥80,000.00 | F14: 5.00% | G14: 4066400.00% | H14: 10 | I14: =IF(AND(CollegeLoans[[#This Row],[开始日期]]>0,CollegeLoans[[#This Row],[期限（年）]]>0),EDATE(CollegeLoans[[#This Row],[开始日期]],CollegeLoans[[#This Row],[期限（年）]]*12),"") -> 4431700.00% | J14: =IF(AND(LoanStartLToday,COUNT(CollegeLoans[[#This Row],[贷款金额]:[期限（年）]])=4,CollegeLoans[[#This Row],[开始日期]]<TODAY()),PMT(CollegeLoans[[#This Row],[年利率]]/12,CollegeLoans[[#This Row],[期限（年）]]*12,-CollegeLoans[[#This Row],[贷款金额]],0,0),"") -> ¥848.52 | K14: =IFERROR((CollegeLoans[[#This Row],[计划还款]]*(CollegeLoans[[#This Row],[期限（年）]]*12))-CollegeLoans[[#This Row],[贷款金额]],"") -> ¥21,822.89 | L14: =IF(COUNTA(CollegeLoans[[#This Row],[贷款金额]:[期限（年）]])<>4,"",PMT(CollegeLoans[[#This Row],[年利率]]/12,CollegeLoans[[#This Row],[期限（年）]]*12,-CollegeLoans[[#This Row],[贷款金额]],0,0)) -> ¥848.52 | M14: =IFERROR(CollegeLoans[[#This Row],[计划还款]]*12,"") -> ¥10,182.29
C15: 36785LM | D15: 贷方 3 | E15: ¥60,000.00 | F15: 4.50% | G15: 4096900.00% | H15: 10 | I15: =IF(AND(CollegeLoans[[#This Row],[开始日期]]>0,CollegeLoans[[#This Row],[期限（年）]]>0),EDATE(CollegeLoans[[#This Row],[开始日期]],CollegeLoans[[#This Row],[期限（年）]]*12),"") -> 4462100.00% | J15: =IF(AND(LoanStartLToday,COUNT(CollegeLoans[[#This Row],[贷款金额]:[期限（年）]])=4,CollegeLoans[[#This Row],[开始日期]]<TODAY()),PMT(CollegeLoans[[#This Row],[年利率]]/12,CollegeLoans[[#This Row],[期限（年）]]*12,-CollegeLoans[[#This Row],[贷款金额]],0,0),"") -> ¥621.83 | K15: =IFERROR((CollegeLoans[[#This Row],[计划还款]]*(CollegeLoans[[#This Row],[期限（年）]]*12))-CollegeLoans[[#This Row],[贷款金额]],"") -> ¥14,619.65 | L15: =IF(COUNTA(CollegeLoans[[#This Row],[贷款金额]:[期限（年）]])<>4,"",PMT(CollegeLoans[[#This Row],[年利率]]/12,CollegeLoans[[#This Row],[期限（年）]]*12,-CollegeLoans[[#This Row],[贷款金额]],0,0)) -> ¥621.83 | M15: =IFERROR(CollegeLoans[[#This Row],[计划还款]]*12,"") -> ¥7,461.97
C16: 765R43 | D16: 贷方 4 | E16: ¥40,000.00 | F16: 5.00% | G16: 4103000.00% | H16: 5 | I16: =IF(AND(CollegeLoans[[#This Row],[开始日期]]>0,CollegeLoans[[#This Row],[期限（年）]]>0),EDATE(CollegeLoans[[#This Row],[开始日期]],CollegeLoans[[#This Row],[期限（年）]]*12),"") -> 4285600.00% | J16: =IF(AND(LoanStartLToday,COUNT(CollegeLoans[[#This Row],[贷款金额]:[期限（年）]])=4,CollegeLoans[[#This Row],[开始日期]]<TODAY()),PMT(CollegeLoans[[#This Row],[年利率]]/12,CollegeLoans[[#This Row],[期限（年）]]*12,-CollegeLoans[[#This Row],[贷款金额]],0,0),"") -> ¥754.85 | K16: =IFERROR((CollegeLoans[[#This Row],[计划还款]]*(CollegeLoans[[#This Row],[期限（年）]]*12))-CollegeLoans[[#This Row],[贷款金额]],"") -> ¥5,290.96 | L16: =IF(COUNTA(CollegeLoans[[#This Row],[贷款金额]:[期限（年）]])<>4,"",PMT(CollegeLoans[[#This Row],[年利率]]/12,CollegeLoans[[#This Row],[期限（年）]]*12,-CollegeLoans[[#This Row],[贷款金额]],0,0)) -> ¥754.85 | M16: =IFERROR(CollegeLoans[[#This Row],[计划还款]]*12,"") -> ¥9,058.19
C17: 总 | E17: =SUBTOTAL(109,CollegeLoans[贷款金额]) -> ¥280,000.00 | J17: =SUBTOTAL(109,CollegeLoans[当前月还款额]) -> ¥3,285.86 | K17: =SUBTOTAL(109,CollegeLoans[总利息]) -> ¥69,012.13 | L17: =SUBTOTAL(109,CollegeLoans[计划还款]) -> ¥3,285.86 | M17: =SUBTOTAL(109,CollegeLoans[年度还款]) -> ¥39,430.31
C18: 平均 | E18: =AVERAGE(CollegeLoans[贷款金额]) -> ¥70,000.00 | F18: =AVERAGE(CollegeLoans[年利率]) -> 4.88% | K18: =AVERAGE(CollegeLoans[总利息]) -> ¥17,253.03 | M18: =AVERAGE(CollegeLoans[年度还款]) -> ¥9,857.58
K20: 合并的贷款偿还总额： | M20: =CollegeLoans[[#Totals],[贷款金额]]+CollegeLoans[[#Totals],[总利息]] -> ¥349,012.13
K22: 毕业后的预计月收入： | M22: =(EstimatedAnnualSalary/12) -> ¥41,666.67
